Cogmind - Beta 16 @@@ ROGUE MODE // 2025.11.08 @ 17:17:59 Player: YBOUZL Result: Destroyed by G-47 Trooper with Particle Gun Performance ------------- Evolutions (2) 1000 Regions Visited (3) 600 Robots Destroyed (34) 170 Value Destroyed (1056) 1056 Prototype IDs (0) 0 Alien Tech Used (0) 0 Bonus (0) 0 TOTAL SCORE: 2826 Bonus ------- None Cogmind --------- Core Integrity 0/550 Matter 188/300 Energy 99/100 System Corruption 0% Temperature Cool (18) Movement Core (50) Location -8/Materials Parts ------- > --- POWER (1) -------- (None) > --- PROPULSION (4) --- (None) > --- UTILITY (4) ------ Visual Processing Unit > --- WEAPON (2) ------- (None) > --- INVENTORY (5) ---- Improved Titanium Leg Improved Titanium Leg Improved Titanium Leg Advanced ECM Suite Shock Rifle Peak State ------------ > --- POWER ------------ Ion Engine > --- PROPULSION ------- Aluminum Leg Improved Carbon-fiber Leg Improved Carbon-fiber Leg > --- UTILITY ---------- Large Storage Unit Visual Processing Unit Advanced ECM Suite > --- WEAPON ----------- (None) > --- INVENTORY -------- Improved Carbon-fiber Leg Improved Carbon-fiber Leg Improved Titanium Leg Improved Titanium Leg Improved Titanium Leg Improved Titanium Leg Improved Heat Sink Disposable Heat Sink Large Storage Unit Particle Charger [Rating: 20] Favorites ----------- Power Light Nuclear Core Engine Light Ion Engine Power Core Light Nuclear Core Propulsion Aluminum Leg Leg Aluminum Leg Utility Visual Processing Unit Device Sensor Array Storage Large Storage Unit Processor Visual Processing Unit Protection Improved Propulsion Shielding Weapon Small Laser Energy Gun Small Laser Ballistic Gun Assault Rifle Launcher Grenade Launcher Build | -11 -10 -9 -8 ------- Run | Yrd Mat Mat Mat Slots Evolved 4 | . . 2 2 Power . | . . . . Propulsion 2 | . . 2 . Utility 2 | . . . 2 Weapon . | . . . . Parts Attached 38 | 6 4 9 19 Power 5 | 1 . 1 3 Engine 3 | 1 . . 2 Core 2 | . . 1 1 Reactor . | . . . . Propulsion 16 | 2 . 5 9 Treads . | . . . . Leg 16 | 2 . 5 9 Wheel . | . . . . Hover . | . . . . Flight . | . . . . Utility 9 | 1 4 . 4 Device 3 | . 1 . 2 Storage 3 | 1 2 . . Processor 2 | . 1 . 1 Hackware . | . . . . Protection 1 | . . . 1 Artifact . | . . . . Weapon 8 | 2 . 3 3 Energy Gun 4 | . . 3 1 Energy Cannon . | . . . . Ballistic Gun 2 | 2 . . . Ballistic Cannon . | . . . . Launcher 2 | . . . 2 Special Weapon . | . . . . Impact Weapon . | . . . . Slashing Weapon . | . . . . Piercing Weapon . | . . . . Special Melee Weapon . | . . . . Unidentified Prototypes . | . . . . Parts Lost 26 | . . 6 20 Power 4 | . . . 4 Propulsion 11 | . . 3 8 Utility 3 | . . . 3 Weapon 8 | . . 3 5 Highest Loss Streak 12 | . . 2 12 To Critical Strikes 1 | . . . 1 Average Backups 11 | 3 8 13 13 Power 1 | . 1 2 1 Propulsion 2 | 2 2 1 5 Utility 4 | . 2 6 4 Weapon 2 | . 2 2 1 Tool/Special . | . . . . Unused Backups 19 | . 4 5 10 Power 1 | . . 1 . Propulsion 11 | . 4 1 6 Utility 6 | . . 2 4 Weapon 1 | . . 1 . Tool/Special . | . . . . Average Slot Usage (%) 93 | . 91 96 86 Engine 4 | . 14 3 1 Core 5 | . . 6 6 Leg 36 | . 28 40 32 Device 1 | . . . 7 Storage 10 | . 14 11 8 Processor 10 | . 5 11 12 Protection 1 | . . . 4 Energy Gun 10 | . . 13 10 Ballistic Gun 9 | . 28 8 . Peak Build Rating 20 | 6 10 14 20 Average Rating 12 | 5 7 12 16 On Entrance 7 | . 6 9 14 Avg Prop Armor Cover (%) . | . . . . Naked Turns . | . . . . Heaviest Build 32 | 12 17 28 32 Greatest Support 64 | 20 20 40 64 Greatest Overweight (x) 2 | 2 . 1 2 Average Overweight (x) . | . . . . Largest Inventory Capacity 15 | 8 15 15 15 Average Capacity 13 | 6 9 13 14 Most Carried 15 | 6 10 15 15 Average Carried 11 | 4 8 13 13 Final Capacity 15 | 8 10 15 5 Final Carried 15 | 6 10 15 5 Class Distribution -------------------- 46% | Scavenger-Mutant 45% | Mutant 8% | Scavenger-Skirmisher Dominant Class ---------------- Mutant | -10/Materials Scavenger-Mutant | -9/Materials Scavenger-Mutant | -8/Materials Resources | -11 -10 -9 -8 ----------- Run | Yrd Mat Mat Mat Matter Collected 843 | 207 123 309 204 Remotely . | . . . . Salvage Created 1120 | . 123 695 302 Parts 58 | . 9 34 15 Haulers Intercepted . | . . . . Recyclers Shooed 3 | . 1 1 1 Parts Field Recycled . | . . . . Retrieved Matter . | . . . . Parts Self-Destructed . | . . . . Prevented . | . . . . Parts Restored . | . . . . Kills | -11 -10 -9 -8 ------- Run | Yrd Mat Mat Mat Combat Hostiles Destroyed 23 | . 2 15 6 Guns 19 | . 2 15 2 AOE 4 | . . . 4 Classes Destroyed 7 | . 2 2 3 Worker 4 | . . 1 3 Builder 1 | . . . 1 Recycler 1 | . . . 1 Mechanic 1 | . . . 1 Watcher 4 | . 2 2 . Grunt 21 | . 2 13 6 Sentry 2 | . . 2 . Best Kill Streak 5 | . 1 4 5 Combat Bots Only 4 | . 1 4 2 Max Kills in Single Turn 4 | . 1 1 4 Gunslinging . | . . . . Exploded 1 | . . . 1 Melee . | . . . . Uniques/NPCs Destroyed . | . . . . Combat | -11 -10 -9 -8 -------- Run | Yrd Mat Mat Mat Hostile Shots Fired 279 | . 17 105 157 Missed 83 | . 2 32 49 Hits 196 | . 15 73 108 Projectile 196 | . 15 73 108 Critical Strikes 7 | . 1 2 4 Damage Taken 3223 | . 224 947 2052 Core 732 | . 78 88 566 Absorbed by Shields . | . . . . Redirected to Shielding 103 | . . . 103 Regen/Repaired (Parts) 128 | . . 128 . Core Remaining (%) 82 | 100 68 78 . Volleys Fired 118 | . 16 79 23 Largest 2 | . 2 2 2 Hottest 95 | . 40 80 95 Shots Fired 228 | . 32 157 39 Gun 212 | . 32 157 23 Cannon . | . . . . Launcher 16 | . . . 16 Special . | . . . . Kinetic 76 | . 32 44 . Thermal 136 | . . 113 23 Explosive 16 | . . . 16 Electromagnetic . | . . . . Robot Hit Streak 12 | . 6 12 8 Robot Miss Streak 5 | . 2 5 3 Penetration Max . | . . . . Secondary Targets 1 | . . 1 . Max Gunslinging Chain 1 | . . 1 . Shots Hit Robots 140 | . 18 99 23 Core Hits 79 | . 8 39 32 Critical Kills . | . . . . Critical Parts Destroyed . | . . . . Critical Strikes . | . . . . Melee Attacks . | . . . . Impact . | . . . . Slashing . | . . . . Piercing . | . . . . Sneak Attacks . | . . . . Combat Hostiles . | . . . . Follow-up Attacks . | . . . . Damage Inflicted 2475 | . 229 1148 1098 Guns 1569 | . 229 1141 199 Cannons . | . . . . Explosions 859 | . . . 859 Melee . | . . . . Ramming 47 | . . 7 40 Kinetic 563 | . 229 334 . Thermal 1006 | . . 807 199 Explosive 859 | . . . 859 Electromagnetic . | . . . . Impact . | . . . . Slashing . | . . . . Piercing . | . . . . Highest Corruption . | . . . . Average Corruption . | . . . . Corruption Purged . | . . . . Corruption Blocked . | . . . . Overload Shots . | . . . . Overflow Damage 3 | . . . 3 Projectiles . | . . . . Explosions 2 | . . . 2 Melee 1 | . . . 1 Knockbacks . | . . . . Impact . | . . . . Kinetic . | . . . . Secondary . | . . . . Self-Inflicted Damage 217 | . . . 217 Shots 5 | . . . 5 Rammed . | . . . . Targets Rammed 7 | . . 5 2 Kicked 7 | . . 5 2 Crushed . | . . . . Highest Temperature 267 | . 20 267 47 Average Temperature 52 | . 4 62 17 Received Heat Transfer 1293 | . 144 528 621 Siege Activations . | . . . . Martial Activations . | . . . . Shielding Activations . | . . . . Robots Disrupted . | . . . . Combat Hostiles . | . . . . Robots Corrupted 1 | . . . 1 Combat Hostiles . | . . . . Parts Fried 4 | . . . 4 Impact Corruptions 1 | . . . 1 Robots Melted . | . . . . Combat Hostiles . | . . . . Parts Melted . | . . . . Heat Transferred 2275 | . . 1825 450 Parts Sabotaged . | . . . . Parts Stolen . | . . . . Parts Stripped . | . . . . Power Chain Reactions . | . . . . Alert | -11 -10 -9 -8 ------- Run | Yrd Mat Mat Mat Maximum Alert Level . | . . . . Low Security (%) 100 | 100 100 100 100 Level 1 . | . . . . Level 2 . | . . . . Level 3 . | . . . . Level 4 . | . . . . Level 5 . | . . . . High Security . | . . . . Max Security . | . . . . Peak Influence 156 | . 35 146 156 Initial 56 | . . . 56 Average 29 | . 7 27 53 Influence Increases 1043 | . 94 529 420 Destroy 0b10 Robot/C 460 | . 40 300 120 Destroy 0b10 Robot/NC 55 | . 10 15 30 Destroy Leader 108 | . 14 74 20 Trap Triggered on 0b10 10 | . . 10 . Successful Hack 91 | . 14 69 8 Disable Machine 60 | . . . 60 Destroy Structure 109 | . 1 1 107 Partial Spotted 30 | . . . 30 Lose Combat Pursuer 120 | . 15 60 45 Influence Decreases 987 | . 94 395 498 Entered New Map 78 | . . . 78 Time Decay 654 | . 94 340 220 Lost Part 255 | . . 55 200 Squads Dispatched 7 | . 1 3 3 Investigation 2 | . . 2 . Extermination . | . . . . Reinforcement 5 | . 1 1 3 Assault . | . . . . Garrison . | . . . . Intercept . | . . . . Searches Triggered . | . . . . Construction Impeded . | . . . . Haulers Reinforced . | . . . . Active Scanning Responses . | . . . . Cargo Convoy Interrupts . | . . . . Stealth | -11 -10 -9 -8 --------- Run | Yrd Mat Mat Mat Distress Signals 6 | . 2 3 1 Communications Jammed . | . . . . Distress Signals . | . . . . Times Spotted 64 | . 8 29 27 Peak Tracking Total 13 | . 3 3 13 Tactical Retreats 8 | . 1 4 3 Traps | -11 -10 -9 -8 ------- Run | Yrd Mat Mat Mat Traps Triggered 2 | . . 1 1 Indirectly . | . . . . Trap Hack Attempts . | . . . . Triggered . | . . . . Disarmed . | . . . . Reprogrammed 6 | . . 6 . Reused 1 | . . 1 . Traps Extracted . | . . . . Installed . | . . . . Triggered 1 | . . 1 . Machines | -11 -10 -9 -8 ---------- Run | Yrd Mat Mat Mat Machines Disabled 4 | . . . 4 Max in Single Turn 4 | . . . 4 Machines Repaired . | . . . . Machines Dismantled . | . . . . Machines Sabotaged . | . . . . Overloaded Fab Kills . | . . . . Hacking | -11 -10 -9 -8 --------- Run | Yrd Mat Mat Mat Machines Accessed 7 | . 1 5 1 Terminals 5 | . 1 3 1 Fabricators . | . . . . Repair Stations 1 | . . 1 . Recycling Units . | . . . . Scanalyzers 1 | . . 1 . Garrison Access . | . . . . Total Hacks 21 | . 2 17 2 Successful 13 | . 1 11 1 Failed 8 | . 1 6 1 Catastrophic 1 | . . 1 . Database Lockouts . | . . . . Manual . | . . . . Terminals 13 | . 2 9 2 Fabricators . | . . . . Repair Stations 5 | . . 5 . Recycling Units . | . . . . Scanalyzers 3 | . . 3 . Garrison Access . | . . . . Terminal Hacks 7 | . 1 5 1 Record 2 | . . 1 1 Robot Analysis 1 | . 1 . . Emergency Access Points 1 | . . 1 . Reprogram Traps 1 | . . 1 . Surveillance Status 1 | . . 1 . Registered Components 1 | . . 1 . Fabricator Hacks . | . . . . Repair Station Hacks 4 | . . 4 . Scan Component 2 | . . 2 . Repair 2 | . . 2 . Recycling Unit Hacks . | . . . . Scanalyzer 2 | . . 2 . Insert Component 1 | . . 1 . Retrieve Study 1 | . . 1 . Garrison Access Hacks . | . . . . Unauthorized Hacks . | . . . . Terminals . | . . . . Fabricators . | . . . . Repair Stations . | . . . . Recycling Units . | . . . . Scanalyzers . | . . . . Garrison Access . | . . . . Data Cores Recovered . | . . . . Used . | . . . . Hacking Detections 6 | . 1 4 1 Full Trace Events 1 | . . 1 . Feedback Events . | . . . . Feedback Blocked . | . . . . Robot Schematics Acquired . | . . . . Robots Built . | . . . . Authchips . | . . . . Time . | . . . . Total Robot Build Rating . | . . . . Part Schematics Acquired . | . . . . Parts Built . | . . . . Authchips . | . . . . Time . | . . . . Total Part Build Rating . | . . . . Part Studies Acquired 1 | . . 1 . Parts Repaired 2 | . . 2 . Time 64 | . . 64 . Parts Recycled . | . . . . Recycled Matter . | . . . . Retrieved Matter . | . . . . Retrieved Components . | . . . . Parts Scanalyzed . | . . . . Part Schematics Acquired . | . . . . Parts Damaged . | . . . . Bothacking | -11 -10 -9 -8 ------------ Run | Yrd Mat Mat Mat Used RIF Installer . | . . . . Robots Hacked . | . . . . Non-combat . | . . . . Combat . | . . . . Robot Hacks Applied . | . . . . Relay Couplers Released . | . . . . Fabnet Peak Effective % . | . . . . Robots Rewired . | . . . . Allies Hacked . | . . . . Hacks Repelled . | . . . . Allies | -11 -10 -9 -8 -------- Run | Yrd Mat Mat Mat Total Allies . | . . . . Largest Group . | . . . . Highest-Rated Group . | . . . . Highest-Rated Ally . | . . . . Total Orders . | . . . . Ally Attacks . | . . . . Total Damage . | . . . . Kills . | . . . . Allies Corrupted . | . . . . Allies Melted . | . . . . Intel | -11 -10 -9 -8 ------- Run | Yrd Mat Mat Mat Active Infowar (turns) 2137 | . 165 1384 588 Optics 2137 | . 165 1384 588 Sensors 499 | . . . 499 ECM 1 | . . . 1 Robot Analysis Total 1 | . 1 . . Derelict Logs Recovered . | . . . . Drone Launches . | . . . . Drone Recoveries . | . . . . Exploration | -11 -10 -9 -8 ------------- Run | Yrd Mat Mat Mat Turns Passed 2483 | 113 398 1384 588 Spaces Moved 1101 | 85 203 512 301 Core 38 | 11 . . 27 Treads . | . . . . Legs 1063 | 74 203 512 274 Wheels . | . . . . Hover . | . . . . Flight . | . . . . Fastest Speed 50 | 50 120 105 50 Average Speed 113 | 115 120 117 102 Slowest Speed 245 | 150 120 190 245 Overloaded Moves . | . . . . Propulsion Burnouts . | . . . . Robots Hopped . | . . . . Potential Cave-ins . | . . . . Cave-ins Triggered . | . . . . Exploration Rate (%) 27 | 4 28 40 37 Regions Visited 3 Branch Regions . Pre-discovered Areas . | . . . . Known Exits Taken . | . . . . Unknown Exits Taken 3 | 1 1 1 . Scrap Searched . | . . . . Spaces Dug 6 | . . . 6 Terrain Destroyed 162 | . . . 162 Melee . | . . . . Projectile . | . . . . AOE 162 | . . . 162 Terrain Rammed . | . . . . Walls Destroyed . | . . . . Machines Disabled . | . . . . Actions | -11 -10 -9 -8 --------- Run | Yrd Mat Mat Mat Total 2112 | 98 330 1136 548 Wait 755 | . 87 504 164 Move 1098 | 84 202 511 301 Hop . | . . . . Pick Up 51 | 8 9 18 16 Fast Attach 10 | 4 1 4 1 Attach 32 | 2 5 7 18 Detach 6 | . 5 . 1 Swap 8 | . . 1 7 Drop 27 | . 5 7 15 Fire 118 | . 16 79 23 Melee . | . . . . Ram . | . . . . Kick 7 | . . 5 2 Crush . | . . . . Escape Stasis . | . . . . Rewire . | . . . . Trap . | . . . . Miscellaneous . | . . . . Route ------- -11/Scrapyard -10/Materials -9/Materials -8/Materials History --------- Turn | Location | Event 12 | -11/Scrapyard | Discovered new exit (range 15) 114 | -11/Scrapyard | Entered Materials 313 | -10/Materials | Build established: Mutant 471 | -10/Materials | Discovered new exit (range 16) 512 | -10/Materials | Entered another Materials area 512 | -9/Materials | Evolved 2 slots: Propulsion x2 1311 | -9/Materials | Build established: Scavenger-Mutant 1500 | -9/Materials | Repaired Lgt. Nuclear Core 1528 | -9/Materials | Repaired Aluminum Leg 1876 | -9/Materials | Discovered new exit (range 17) 1896 | -9/Materials | Entered another Materials area 1896 | -8/Materials | Evolved 2 slots: Utility x2 2204 | -8/Materials | Lost 6 parts (1p3n1u1w) 2399 | -8/Materials | Core integrity fell below 50% 2469 | -8/Materials | Core integrity fell below 20% 2484 | -8/Materials | Destroyed by G-47 Trooper with Particle Gun Last Messages --------------- 02427_ Critical hit (Destroy). 02427_ Imp. Carbon-fiber Leg destroyed. 02431_ Slug penetrates Wall. 02456_ Kicked X-62 Marksman out of the way. 02456_ Slug penetrates Wall. 02456_ Aluminum Leg+ destroyed. 02459_ Penetrated by Slug. 02459_ Ion Engine destroyed. 02459_ Penetrated by Slug. 02465_ Slug penetrates Wall. 02465_ Penetrated by Slug. 02465_ Dropped Imp. Heat Sink. 02466_ Dropped Disposable Heat Sink. 02466_ Dropped Lrg. Storage Unit. 02467_ Dropped Particle Charger. 02467_ Dropped Imp. Titanium Leg. 02468_ Dropped Imp. Carbon-fiber Leg. 02469_ Dropped Lrg. Storage Unit. 02471_ Dropped Imp. Carbon-fiber Leg. 02475_ Acquired Shock Rifle. Map ----- +----------------------------------------------------+ | ?????????????????????????????????????????????????? | | ?????????????????????????????????????????????????? | | ????? ??????????????????????????????????????????? | | ????? ??????????????????????????????????????????? | | ????? ???????????????????????????????????????????? | | ???? ???????????????????????????????????????????? | | ???? #???????????????????????????????????????????? | | ???? #???????????????????????????????????????????? | | ?### #???????????????????????????????????????????? | | + +????????????????###+???????????????????????? | | # #???????????????# ???????????????????????? | | # #???????????????# ???????????????????????? | | # #???????????????" ???????????????????????? | | # ##??????????????T #???????????????????????? | | # T#??????????????" #???????????????????????? | | #???????????????# #???????????????????????? | | #???????????????# #???????????????????????? | | #???????????????# #???????????????????????? | | #+##+#####???????????# #???????????????????????? | | # #???????????# #???????????????????????? | | # [ #??########## ##########??????????????? | | # #??# # # #??????????????? | | # """ #??# # # """ #??????????????? | | # """ #??# # # """ =! #??????????????? | | # "S #??# l # # """ =! #??????????????? | | # """ #??# kg/ @ ! #??????????????? | | # "" ##?# #w # """ ]#??????????????? | | # #?# #g # """ #??????????????? | | #####/#######!= # # """ ! #??????????????? | | ==!!!!= # # #??????????????? | | ############### ####k#####??????????????? | | #?????????????# #??? #??????????????????? | | +### #?????????????# #????#??????????????????? | | ???# #?????????????# #???????????????????????? | | ???# #?????????????" #???????????????????????? | | ???# #?????????????Y #???????????????????????? | | ???# #?????????????" #???????????????????????? | | ???# #?????????????# ???????????????????????? | | ???# #?????????????# ???????????????????????? | | ???+ +?????????????# ???????????????????????? | | ???# #?????????????# ???????????????????????? | | ???# #?????????????? ??????????????????????? | | ???# #?????????????? ???????????????????????? | | ???# ??????????????????????????????????????????? | | ???# ??????????????????????????????????????????? | | ???? ??????????????????????????????????????????? | | ???? ??????????????????????????????????????????? | | ?????????????????????????????????????????????????? | | ?????????????????????????????????????????????????? | | ?????????????????????????????????????????????????? | +----------------------------------------------------+ Best States ------------- Heat Dissipation 31 Energy Generation 14 Energy Capacity 250 Matter Stores 300 Matter Capacity 300 Sight Range 18 Robot Scan Range 14 Terrain Scan Density 10 Propulsion Shielding 66 Evasion (%) 55 Item Schematics ----------------- None Robot Schematics ------------------ None Fabricated ------------ Nothing Repaired ---------- Lgt. Nuclear Core | 6% | -9/Materials Aluminum Leg | 10% | -9/Materials Studied --------- Aluminum Leg | -9/Materials | Hacked Alien Tech Used ----------------- None Achievements -------------- Heavy Suspicion Spot Them First Challenges ------------ None Game ------ Seed AnalysisThunderDevice Manual? 0 Play Time 00:31:09 Cumulative 20.0 hours Start 2025.11.08 @ 16:45:25 End 2025.11.08 @ 17:17:59 Sessions 1 Manual Loads 0 Difficulty Rogue Special Mode None Game No. 41 Rogue 41 Adventurer 0 Explorer 0 Win Type - Total 0 Types 0/0/0/0/0/0/0/0/0/0 Lore% 12 Gallery% 21 Achievement% 12 Wizard Run 0 Options --------- Layout 1 ASCII 0 Keyboard 0 Movement Arrows Keybinds 0 Fullscreen 1 Font 24/Smallcaps Map View 50x40 Zoom Use 0% Tactical HUD 1 Map Filters NONE Filters NONE Steam 1 RUN: 15d8de45-269f-4ee6-9a86-9ded62858804